[Event "Titled Tuesday Blitz July 6 2021"]
[White "Yaniuk, Volodymyr"]
[Black "Cunjalo, Faris"]
[WhiteFideId "14133083"]
[BlackFideId "14410710"]
[WhiteElo "2207"]
[BlackElo "2234"]
[Result "0-1"]
[Round "04"]
[TimeControl "180+1"]
[Date "2021.07.06"]
[WhiteClock "0:00:05"]
[BlackClock "0:00:06"]

1. d4 {[%clk 0:03:00]}  Nf6 {[%clk 0:02:59]} 2. c4 {[%clk 0:03:00]}  e6 {[%clk 0:03:00]} 3. g3 {[%clk 0:03:00]}  d5 {[%clk 0:02:59]} 4. Bg2 {[%clk 0:03:00]}  dxc4 {[%clk 0:02:57]} 5. Nf3 {[%clk 0:02:59]}  c6 {[%clk 0:02:56]} 6. O-O {[%clk 0:02:58]}  b5 {[%clk 0:02:56]} 7. Ne5 {[%clk 0:02:58]}  Bb7 {[%clk 0:02:56]} 8. b3 {[%clk 0:02:59]}  cxb3 {[%clk 0:02:57]} 9. axb3 {[%clk 0:02:59]}  a5 {[%clk 0:02:54]} 10. Nc3 {[%clk 0:02:57]}  Nd5 {[%clk 0:02:47]} 11. Ne4 {[%clk 0:02:53]}  Nd7 {[%clk 0:02:43]} 12. Nd3 {[%clk 0:02:50]}  Be7 {[%clk 0:02:42]} 13. Bf4 {[%clk 0:02:38]}  O-O {[%clk 0:02:34]} 14. Qc2 {[%clk 0:02:36]}  Nxf4 {[%clk 0:02:18]} 15. gxf4 {[%clk 0:02:37]}  c5 {[%clk 0:01:53]} 16. dxc5 {[%clk 0:02:32]}  Qc7 {[%clk 0:01:51]} 17. Rfc1 {[%clk 0:02:25]}  Bc6 {[%clk 0:01:50]} 18. e3 {[%clk 0:02:14]}  Rfc8 {[%clk 0:01:49]} 19. Qc3 {[%clk 0:01:42]}  b4 {[%clk 0:01:29]} 20. Qc2 {[%clk 0:01:34]}  Bd5 {[%clk 0:01:27]} 21. Nd2 {[%clk 0:00:50]}  Bxg2 {[%clk 0:01:19]} 22. Kxg2 {[%clk 0:00:51]}  Qc6+ {[%clk 0:00:59]} 23. Kg1 {[%clk 0:00:47]}  Bf6 {[%clk 0:00:59]} 24. Rab1 {[%clk 0:00:45]}  Bc3 {[%clk 0:00:59]} 25. Nc4 {[%clk 0:00:41]}  Nxc5 {[%clk 0:00:59]} 26. Nxc5 {[%clk 0:00:34]}  Qxc5 {[%clk 0:01:00]} 27. Ne5 {[%clk 0:00:30]}  f6 {[%clk 0:00:51]} 28. Nf3 {[%clk 0:00:17]}  Qd5 {[%clk 0:00:41]} 29. Qe2 {[%clk 0:00:17]}  Rd8 {[%clk 0:00:33]} 30. Rd1 {[%clk 0:00:16]}  Qe4 {[%clk 0:00:34]} 31. h3 {[%clk 0:00:16]}  h6 {[%clk 0:00:25]} 32. Kg2 {[%clk 0:00:16]}  Kh7 {[%clk 0:00:25]} 33. Rbc1 {[%clk 0:00:14]}  f5 {[%clk 0:00:19]} 34. Kh2 {[%clk 0:00:14]}  Rxd1 {[%clk 0:00:14]} 35. Qxd1 {[%clk 0:00:14]}  a4 {[%clk 0:00:15]} 36. bxa4 {[%clk 0:00:13]}  Bf6 {[%clk 0:00:06]} 37. Rb1 {[%clk 0:00:13]}  Bc3 {[%clk 0:00:04]} 38. Nh4 {[%clk 0:00:11]}  Rxa4 {[%clk 0:00:03]} 39. Qg1 {[%clk 0:00:09]}  Ra7 {[%clk 0:00:03]} 40. Qg6+ {[%clk 0:00:09]}  Kh8 {[%clk 0:00:04]} 41. Rd1 {[%clk 0:00:08]}  Qa8 {[%clk 0:00:03]} 42. Nf3 {[%clk 0:00:06]}  Qc8 {[%clk 0:00:02]} 43. Ne5 {[%clk 0:00:06]}  Bxe5 {[%clk 0:00:03]} 44. fxe5 {[%clk 0:00:07]}  b3 {[%clk 0:00:03]} 45. e4 {[%clk 0:00:07]}  fxe4 {[%clk 0:00:02]} 46. Qxe4 {[%clk 0:00:06]}  Rb7 {[%clk 0:00:02]} 47. Rd8+ {[%clk 0:00:05]}  Qxd8 {[%clk 0:00:02]} 48. Qxb7 {[%clk 0:00:06]}  Qd5 {[%clk 0:00:03]} 49. Qb8+ {[%clk 0:00:05]}  Kh7 {[%clk 0:00:04]} 50. Kg3 {[%clk 0:00:06]}  Qd3+ {[%clk 0:00:04]} 51. f3 {[%clk 0:00:06]}  Qg6+ {[%clk 0:00:04]} 52. Kf2 {[%clk 0:00:07]}  Qc2+ {[%clk 0:00:04]} 53. Kg3 {[%clk 0:00:07]}  b2 {[%clk 0:00:05]} 54. Qb6 {[%clk 0:00:05]}  Qg6+ {[%clk 0:00:05]} 55. Kf2 {[%clk 0:00:05]}  b1=Q {[%clk 0:00:06]} 0-1


[Site "https://www.chess.com"]

[Event "Titled Tuesday Blitz July 6 2021"]
[White "Yi, Richard"]
[Black "Dang, Hoang Son"]
[WhiteFideId "2079518"]
[BlackFideId "12402435"]
[WhiteElo "2503"]
[BlackElo "2248"]
[Result "1-0"]
[Round "04"]
[TimeControl "180+1"]
[Date "2021.07.06"]
[WhiteClock "0:00:03"]
[BlackClock "0:00:05"]

1. e4 {[%clk 0:03:00]}  g6 {[%clk 0:02:55]} 2. d4 {[%clk 0:03:00]}  Bg7 {[%clk 0:02:53]} 3. Nc3 {[%clk 0:02:59]}  a6 {[%clk 0:02:36]} 4. Be3 {[%clk 0:02:57]}  d6 {[%clk 0:02:36]} 5. f3 {[%clk 0:02:55]}  Nd7 {[%clk 0:02:36]} 6. g4 {[%clk 0:02:45]}  h5 {[%clk 0:02:35]} 7. g5 {[%clk 0:02:44]}  b5 {[%clk 0:02:31]} 8. Qd2 {[%clk 0:02:40]}  Bb7 {[%clk 0:02:31]} 9. Nge2 {[%clk 0:02:35]}  Nb6 {[%clk 0:02:28]} 10. Nf4 {[%clk 0:02:29]}  e5 {[%clk 0:02:28]} 11. Nh3 {[%clk 0:02:19]}  Ne7 {[%clk 0:02:22]} 12. O-O-O {[%clk 0:02:09]}  O-O {[%clk 0:02:20]} 13. f4 {[%clk 0:02:02]}  b4 {[%clk 0:02:19]} 14. Nb1 {[%clk 0:02:01]}  Bxe4 {[%clk 0:02:19]} 15. Rg1 {[%clk 0:01:53]}  Nf5 {[%clk 0:02:06]} 16. dxe5 {[%clk 0:01:37]}  dxe5 {[%clk 0:01:56]} 17. Bxb6 {[%clk 0:01:37]}  cxb6 {[%clk 0:01:53]} 18. Qxb4 {[%clk 0:01:36]}  Nd4 {[%clk 0:01:27]} 19. c3 {[%clk 0:01:35]}  Rc8 {[%clk 0:01:26]} 20. Bxa6 {[%clk 0:01:30]}  Qd7 {[%clk 0:01:24]} 21. Nf2 {[%clk 0:01:16]}  Bf5 {[%clk 0:01:23]} 22. fxe5 {[%clk 0:01:09]}  Bxe5 {[%clk 0:01:23]} 23. Nd2 {[%clk 0:00:50]}  b5 {[%clk 0:01:20]} 24. Rge1 {[%clk 0:00:43]}  Bxh2 {[%clk 0:00:50]} 25. Bxc8 {[%clk 0:00:38]}  Rxc8 {[%clk 0:00:51]} 26. Nde4 {[%clk 0:00:37]}  Bf4+ {[%clk 0:00:46]} 27. Kb1 {[%clk 0:00:37]}  Rc4 {[%clk 0:00:45]} 28. Qa5 {[%clk 0:00:22]}  Ra4 {[%clk 0:00:39]} 29. Qb6 {[%clk 0:00:22]}  Qd5 {[%clk 0:00:34]} 30. b3 {[%clk 0:00:20]}  Rxa2 {[%clk 0:00:32]} 31. c4 {[%clk 0:00:14]}  bxc4 {[%clk 0:00:20]} 32. Rxd4 {[%clk 0:00:13]}  Qe5 {[%clk 0:00:12]} 33. Kxa2 {[%clk 0:00:10]}  cxb3+ {[%clk 0:00:13]} 34. Kxb3 {[%clk 0:00:11]}  Be6+ {[%clk 0:00:12]} 35. Kc3 {[%clk 0:00:10]}  Kg7 {[%clk 0:00:08]} 36. Nd3 {[%clk 0:00:07]}  Qf5 {[%clk 0:00:04]} 37. Nxf4 {[%clk 0:00:06]}  Qxf4 {[%clk 0:00:05]} 38. Qd6 {[%clk 0:00:04]}  Qf3+ {[%clk 0:00:05]} 39. Rd3 {[%clk 0:00:03]} 1-0


[Site "https://www.chess.com"]

[Event "Titled Tuesday Blitz July 6 2021"]
[White "Zhigalko, Sergei"]
[Black "Abdurakhmonov, Mukhammadali"]
[WhiteFideId "13502956"]
[BlackFideId "14207346"]
[WhiteElo "2662"]
[BlackElo "2266"]
[Result "1-0"]
[Round "04"]
[TimeControl "180+1"]
[Date "2021.07.06"]
[WhiteClock "0:00:04"]
[BlackClock "0:00:04"]

1. e4 {[%clk 0:03:00]}  e5 {[%clk 0:02:58]} 2. Nf3 {[%clk 0:03:00]}  Nc6 {[%clk 0:02:58]} 3. Bc4 {[%clk 0:03:00]}  Nf6 {[%clk 0:02:58]} 4. d3 {[%clk 0:02:59]}  Bc5 {[%clk 0:02:56]} 5. O-O {[%clk 0:02:56]}  O-O {[%clk 0:02:55]} 6. Nbd2 {[%clk 0:02:56]}  d6 {[%clk 0:02:53]} 7. c3 {[%clk 0:02:56]}  a6 {[%clk 0:02:53]} 8. Bb3 {[%clk 0:02:56]}  Ba7 {[%clk 0:02:53]} 9. h3 {[%clk 0:02:55]}  Ne7 {[%clk 0:02:51]} 10. Re1 {[%clk 0:02:54]}  Ng6 {[%clk 0:02:51]} 11. Nf1 {[%clk 0:02:54]}  Nh5 {[%clk 0:02:45]} 12. d4 {[%clk 0:02:48]}  Nhf4 {[%clk 0:02:31]} 13. Ng3 {[%clk 0:02:48]}  h6 {[%clk 0:02:19]} 14. Bc2 {[%clk 0:02:40]}  Qf6 {[%clk 0:02:14]} 15. Nf5 {[%clk 0:02:34]}  Re8 {[%clk 0:02:00]} 16. Be3 {[%clk 0:02:21]}  Bxf5 {[%clk 0:01:39]} 17. exf5 {[%clk 0:02:20]}  Nh4 {[%clk 0:01:39]} 18. dxe5 {[%clk 0:01:25]}  dxe5 {[%clk 0:01:14]} 19. Nxh4 {[%clk 0:01:18]}  Qxh4 {[%clk 0:01:11]} 20. Bxa7 {[%clk 0:01:15]}  Rxa7 {[%clk 0:01:12]} 21. g3 {[%clk 0:01:05]}  Qxh3 {[%clk 0:00:38]} 22. gxf4 {[%clk 0:01:03]}  Raa8 {[%clk 0:00:38]} 23. Re3 {[%clk 0:01:00]}  Qh4 {[%clk 0:00:37]} 24. fxe5 {[%clk 0:00:57]}  Rad8 {[%clk 0:00:37]} 25. Qe2 {[%clk 0:00:54]}  Qg5+ {[%clk 0:00:32]} 26. Kf1 {[%clk 0:00:27]}  Qh4 {[%clk 0:00:27]} 27. Kg2 {[%clk 0:00:24]}  Qg5+ {[%clk 0:00:25]} 28. Kh3 {[%clk 0:00:15]}  Qf4 {[%clk 0:00:16]} 29. Qf3 {[%clk 0:00:12]}  Qxf3+ {[%clk 0:00:15]} 30. Rxf3 {[%clk 0:00:12]}  Rd2 {[%clk 0:00:16]} 31. Bb3 {[%clk 0:00:05]}  Rxe5 {[%clk 0:00:16]} 32. Kg3 {[%clk 0:00:05]}  Rxb2 {[%clk 0:00:13]} 33. Rd1 {[%clk 0:00:05]}  Kf8 {[%clk 0:00:11]} 34. Rd7 {[%clk 0:00:05]}  Re7 {[%clk 0:00:11]} 35. Rd8+ {[%clk 0:00:05]}  Re8 {[%clk 0:00:11]} 36. Rd7 {[%clk 0:00:05]}  Re7 {[%clk 0:00:11]} 37. Rfd3 {[%clk 0:00:06]}  Rbe2 {[%clk 0:00:10]} 38. Kf3 {[%clk 0:00:04]}  Rxd7 {[%clk 0:00:10]} 39. Rxd7 {[%clk 0:00:03]}  Re7 {[%clk 0:00:11]} 40. Rd8+ {[%clk 0:00:04]}  Re8 {[%clk 0:00:11]} 41. Rd7 {[%clk 0:00:04]}  Re7 {[%clk 0:00:12]} 42. Rd1 {[%clk 0:00:04]}  Re8 {[%clk 0:00:11]} 43. Kf4 {[%clk 0:00:04]}  Re2 {[%clk 0:00:10]} 44. f3 {[%clk 0:00:03]}  Ke7 {[%clk 0:00:08]} 45. Rd4 {[%clk 0:00:03]}  b5 {[%clk 0:00:08]} 46. Rd5 {[%clk 0:00:03]}  c6 {[%clk 0:00:08]} 47. Rd4 {[%clk 0:00:03]}  c5 {[%clk 0:00:08]} 48. Re4+ {[%clk 0:00:03]}  Rxe4+ {[%clk 0:00:08]} 49. fxe4 {[%clk 0:00:04]}  g5+ {[%clk 0:00:06]} 50. Ke5 {[%clk 0:00:03]}  h5 {[%clk 0:00:06]} 51. f6+ {[%clk 0:00:03]}  Ke8 {[%clk 0:00:04]} 52. Bd5 {[%clk 0:00:04]}  g4 {[%clk 0:00:03]} 53. Kf4 {[%clk 0:00:04]}  b4 {[%clk 0:00:03]} 54. cxb4 {[%clk 0:00:03]}  cxb4 {[%clk 0:00:04]} 55. Kg5 {[%clk 0:00:03]}  g3 {[%clk 0:00:04]} 56. e5 {[%clk 0:00:03]}  a5 {[%clk 0:00:04]} 57. Kh4 {[%clk 0:00:03]}  a4 {[%clk 0:00:04]} 58. Kxg3 {[%clk 0:00:04]} 1-0


[Site "https://www.chess.com"]

[Event "Titled Tuesday Blitz July 6 2021"]
[White "Zubov, Alexander"]
[Black "Shahade, Gregory"]
[WhiteFideId "14109409"]
[BlackFideId "2009064"]
[WhiteElo "2740"]
[BlackElo "2738"]
[Result "1-0"]
[Round "04"]
[TimeControl "180+1"]
[Date "2021.07.06"]
[WhiteClock "0:00:18"]
[BlackClock "0:00:07"]

1. d4 {[%clk 0:03:00]}  Nf6 {[%clk 0:02:59]} 2. Nf3 {[%clk 0:02:56]}  g6 {[%clk 0:02:59]} 3. c4 {[%clk 0:02:56]}  Bg7 {[%clk 0:02:59]} 4. Nc3 {[%clk 0:02:56]}  d5 {[%clk 0:02:59]} 5. e3 {[%clk 0:02:55]}  O-O {[%clk 0:02:59]} 6. Qb3 {[%clk 0:02:55]}  dxc4 {[%clk 0:02:57]} 7. Bxc4 {[%clk 0:02:55]}  c5 {[%clk 0:02:57]} 8. d5 {[%clk 0:02:54]}  a6 {[%clk 0:02:57]} 9. a4 {[%clk 0:02:54]}  Ne8 {[%clk 0:02:57]} 10. e4 {[%clk 0:02:49]}  Nd6 {[%clk 0:02:57]} 11. Be2 {[%clk 0:02:49]}  Bg4 {[%clk 0:02:52]} 12. O-O {[%clk 0:02:46]}  Nd7 {[%clk 0:02:51]} 13. Be3 {[%clk 0:02:44]}  b5 {[%clk 0:02:46]} 14. axb5 {[%clk 0:02:29]}  axb5 {[%clk 0:02:44]} 15. Nxb5 {[%clk 0:02:28]}  Rb8 {[%clk 0:02:33]} 16. Qa4 {[%clk 0:02:27]}  Bxf3 {[%clk 0:02:19]} 17. gxf3 {[%clk 0:02:26]}  Nxb5 {[%clk 0:02:19]} 18. Bxb5 {[%clk 0:02:25]}  Ne5 {[%clk 0:02:19]} 19. Kg2 {[%clk 0:02:04]}  f5 {[%clk 0:02:19]} 20. Rad1 {[%clk 0:01:28]}  fxe4 {[%clk 0:02:02]} 21. fxe4 {[%clk 0:01:29]}  Qc8 {[%clk 0:01:22]} 22. h3 {[%clk 0:00:54]}  Rf3 {[%clk 0:00:31]} 23. Bd7 {[%clk 0:00:52]}  Qf8 {[%clk 0:00:25]} 24. Be6+ {[%clk 0:00:50]}  Kh8 {[%clk 0:00:25]} 25. Bxc5 {[%clk 0:00:24]}  Rxb2 {[%clk 0:00:25]} 26. Bd4 {[%clk 0:00:21]}  Re2 {[%clk 0:00:14]} 27. Rc1 {[%clk 0:00:20]}  Rg3+ {[%clk 0:00:07]} 28. Kxg3 {[%clk 0:00:19]}  Qf3+ {[%clk 0:00:07]} 29. Kh2 {[%clk 0:00:20]}  Ng4+ {[%clk 0:00:07]} 30. hxg4 {[%clk 0:00:19]}  Bxd4 {[%clk 0:00:07]} 31. Qxd4+ {[%clk 0:00:18]} 1-0


[Site "https://www.chess.com"]

[Event "Titled Tuesday Blitz July 6 2021"]
[White "Afanasiev, Nikita"]
[Black "Nakamura, Hikaru"]
[WhiteFideId "24183555"]
[BlackFideId "2016192"]
[WhiteElo "2521"]
[BlackElo "2900"]
[Result "0-1"]
[Round "05"]
[TimeControl "180+1"]
[Date "2021.07.06"]
[WhiteClock "0:00:02"]
[BlackClock "0:00:12"]

1. Nf3 {[%clk 0:03:00]}  d5 {[%clk 0:02:59]} 2. g3 {[%clk 0:02:58]}  g6 {[%clk 0:02:58]} 3. Bg2 {[%clk 0:02:58]}  Bg7 {[%clk 0:02:59]} 4. d4 {[%clk 0:02:58]}  Nd7 {[%clk 0:02:59]} 5. O-O {[%clk 0:02:57]}  Ngf6 {[%clk 0:03:00]} 6. c3 {[%clk 0:02:54]}  O-O {[%clk 0:02:58]} 7. Nbd2 {[%clk 0:02:52]}  c5 {[%clk 0:02:58]} 8. Re1 {[%clk 0:02:51]}  b6 {[%clk 0:02:56]} 9. Ne5 {[%clk 0:02:46]}  Bb7 {[%clk 0:02:54]} 10. Ndc4 {[%clk 0:02:39]}  Qc8 {[%clk 0:02:45]} 11. Nxd7 {[%clk 0:02:37]}  Nxd7 {[%clk 0:02:46]} 12. Na3 {[%clk 0:02:22]}  Rd8 {[%clk 0:02:25]} 13. Bg5 {[%clk 0:02:21]}  f6 {[%clk 0:02:26]} 14. Be3 {[%clk 0:02:19]}  e6 {[%clk 0:02:24]} 15. Qd2 {[%clk 0:02:18]}  Nf8 {[%clk 0:02:10]} 16. Bh6 {[%clk 0:02:16]}  Bh8 {[%clk 0:02:07]} 17. Rad1 {[%clk 0:02:15]}  Qc7 {[%clk 0:02:05]} 18. Qf4 {[%clk 0:02:05]}  Qf7 {[%clk 0:02:01]} 19. Bxf8 {[%clk 0:02:01]}  Rxf8 {[%clk 0:01:51]} 20. e4 {[%clk 0:02:00]}  cxd4 {[%clk 0:01:49]} 21. cxd4 {[%clk 0:01:59]}  Rad8 {[%clk 0:01:47]} 22. Nb5 {[%clk 0:01:58]}  g5 {[%clk 0:01:43]} 23. Qe3 {[%clk 0:01:53]}  a6 {[%clk 0:01:34]} 24. Nc3 {[%clk 0:01:53]}  Rfe8 {[%clk 0:01:33]} 25. exd5 {[%clk 0:01:50]}  exd5 {[%clk 0:01:31]} 26. Qf3 {[%clk 0:01:49]}  Rxe1+ {[%clk 0:01:09]} 27. Rxe1 {[%clk 0:01:49]}  f5 {[%clk 0:01:10]} 28. Qd3 {[%clk 0:01:40]}  Bg7 {[%clk 0:01:08]} 29. Qd2 {[%clk 0:01:19]}  h6 {[%clk 0:01:06]} 30. Qd3 {[%clk 0:01:18]}  b5 {[%clk 0:01:04]} 31. h3 {[%clk 0:01:16]}  f4 {[%clk 0:01:00]} 32. Bf3 {[%clk 0:01:12]}  fxg3 {[%clk 0:00:58]} 33. fxg3 {[%clk 0:01:12]}  Bc8 {[%clk 0:00:51]} 34. Kg2 {[%clk 0:01:07]}  Bf5 {[%clk 0:00:50]} 35. Qd1 {[%clk 0:01:03]}  Kh8 {[%clk 0:00:45]} 36. Rf1 {[%clk 0:01:00]}  Qa7 {[%clk 0:00:37]} 37. Qb3 {[%clk 0:00:38]}  Qxd4 {[%clk 0:00:35]} 38. Rd1 {[%clk 0:00:34]}  Qe3 {[%clk 0:00:33]} 39. Nxd5 {[%clk 0:00:33]}  Qxb3 {[%clk 0:00:33]} 40. axb3 {[%clk 0:00:33]}  Bxb2 {[%clk 0:00:33]} 41. b4 {[%clk 0:00:28]}  Be6 {[%clk 0:00:25]} 42. Nc7 {[%clk 0:00:17]}  Rxd1 {[%clk 0:00:21]} 43. Bxd1 {[%clk 0:00:18]}  Bc4 {[%clk 0:00:20]} 44. Nxa6 {[%clk 0:00:16]}  Be5 {[%clk 0:00:21]} 45. Bf3 {[%clk 0:00:13]}  Bd6 {[%clk 0:00:20]} 46. Nc5 {[%clk 0:00:13]}  Kg7 {[%clk 0:00:20]} 47. Kf2 {[%clk 0:00:13]}  Bxc5+ {[%clk 0:00:18]} 48. bxc5 {[%clk 0:00:13]}  Kf6 {[%clk 0:00:18]} 49. Ke3 {[%clk 0:00:13]}  b4 {[%clk 0:00:18]} 50. Kd4 {[%clk 0:00:12]}  Be6 {[%clk 0:00:18]} 51. c6 {[%clk 0:00:10]}  Bxh3 {[%clk 0:00:13]} 52. g4 {[%clk 0:00:10]}  Ke7 {[%clk 0:00:13]} 53. Kc5 {[%clk 0:00:10]}  b3 {[%clk 0:00:14]} 54. c7 {[%clk 0:00:09]}  Kd7 {[%clk 0:00:11]} 55. Kb6 {[%clk 0:00:09]}  b2 {[%clk 0:00:12]} 56. Bc6+ {[%clk 0:00:09]}  Kd6 {[%clk 0:00:11]} 57. c8=Q {[%clk 0:00:06]}  b1=Q+ {[%clk 0:00:12]} 58. Bb5 {[%clk 0:00:06]}  Qg1+ {[%clk 0:00:12]} 59. Ka6 {[%clk 0:00:07]}  Qxg4 {[%clk 0:00:10]} 60. Qc6+ {[%clk 0:00:07]}  Ke5 {[%clk 0:00:11]} 61. Qxh6 {[%clk 0:00:07]}  Qe6+ {[%clk 0:00:11]} 62. Qxe6+ {[%clk 0:00:06]}  Bxe6 {[%clk 0:00:11]} 63. Be2 {[%clk 0:00:06]}  Kf4 {[%clk 0:00:12]} 64. Kb6 {[%clk 0:00:06]}  Bg4 {[%clk 0:00:12]} 65. Bc4 {[%clk 0:00:05]}  Ke3 {[%clk 0:00:12]} 66. Kc5 {[%clk 0:00:04]}  Bf5 {[%clk 0:00:13]} 67. Kd5 {[%clk 0:00:04]}  g4 {[%clk 0:00:13]} 68. Ke5 {[%clk 0:00:04]}  Be4 {[%clk 0:00:11]} 69. Bf1 {[%clk 0:00:02]}  g3 {[%clk 0:00:11]} 70. Bh3 {[%clk 0:00:02]}  Bb7 {[%clk 0:00:12]} 0-1


[Site "https://www.chess.com"]

[Event "Titled Tuesday Blitz July 6 2021"]
[White "Akhvlediani, Irakli"]
[Black "Sawlin, Leonid"]
[WhiteFideId "13601938"]
[BlackFideId "4689542"]
[WhiteElo "2226"]
[BlackElo "2412"]
[Result "0-1"]
[Round "05"]
[TimeControl "180+1"]
[Date "2021.07.06"]
[WhiteClock "0:00:07"]
[BlackClock "0:00:15"]

1. Nf3 {[%clk 0:03:00]}  d5 {[%clk 0:02:57]} 2. c4 {[%clk 0:03:00]}  e6 {[%clk 0:02:56]} 3. e3 {[%clk 0:03:00]}  Nf6 {[%clk 0:02:56]} 4. b3 {[%clk 0:03:01]}  Be7 {[%clk 0:02:56]} 5. Bb2 {[%clk 0:03:01]}  O-O {[%clk 0:02:57]} 6. Qc2 {[%clk 0:03:01]}  a5 {[%clk 0:02:55]} 7. Ng5 {[%clk 0:03:01]}  h6 {[%clk 0:02:48]} 8. h4 {[%clk 0:02:58]}  hxg5 {[%clk 0:02:39]} 9. hxg5 {[%clk 0:02:59]}  Ne4 {[%clk 0:02:40]} 10. Qd1 {[%clk 0:02:58]}  Bxg5 {[%clk 0:02:30]} 11. Qh5 {[%clk 0:02:57]}  f6 {[%clk 0:02:21]} 12. Be2 {[%clk 0:02:21]}  Bh6 {[%clk 0:01:30]} 13. d3 {[%clk 0:01:11]}  Nd6 {[%clk 0:01:25]} 14. Qg6 {[%clk 0:00:59]}  Nf5 {[%clk 0:01:17]} 15. g4 {[%clk 0:00:52]}  Ne7 {[%clk 0:01:17]} 16. Qh5 {[%clk 0:00:48]}  e5 {[%clk 0:01:05]} 17. cxd5 {[%clk 0:00:43]}  Nxd5 {[%clk 0:01:02]} 18. Nd2 {[%clk 0:00:34]}  Be6 {[%clk 0:01:00]} 19. Ne4 {[%clk 0:00:32]}  Bf7 {[%clk 0:00:52]} 20. Qh2 {[%clk 0:00:30]}  Nc6 {[%clk 0:00:44]} 21. g5 {[%clk 0:00:20]}  fxg5 {[%clk 0:00:43]} 22. O-O-O {[%clk 0:00:16]}  a4 {[%clk 0:00:42]} 23. Rdg1 {[%clk 0:00:09]}  axb3 {[%clk 0:00:38]} 24. a3 {[%clk 0:00:10]}  Bg6 {[%clk 0:00:32]} 25. Bg4 {[%clk 0:00:07]}  Qe7 {[%clk 0:00:17]} 26. Qh3 {[%clk 0:00:04]}  Nf6 {[%clk 0:00:12]} 27. Be6+ {[%clk 0:00:04]}  Bf7 {[%clk 0:00:12]} 28. Bxf7+ {[%clk 0:00:02]}  Rxf7 {[%clk 0:00:13]} 29. Nxg5 {[%clk 0:00:02]}  Rff8 {[%clk 0:00:12]} 30. Ne6 {[%clk 0:00:02]}  Kf7 {[%clk 0:00:07]} 31. Ng5+ {[%clk 0:00:02]}  Bxg5 {[%clk 0:00:07]} 32. Rxg5 {[%clk 0:00:03]}  Rh8 {[%clk 0:00:07]} 33. Qg2 {[%clk 0:00:02]}  Rxh1+ {[%clk 0:00:07]} 34. Qxh1 {[%clk 0:00:03]}  Qf8 {[%clk 0:00:07]} 35. Qg2 {[%clk 0:00:04]}  Rxa3 {[%clk 0:00:07]} 36. f4 {[%clk 0:00:03]}  Ra2 {[%clk 0:00:07]} 37. fxe5 {[%clk 0:00:04]}  Nd5 {[%clk 0:00:06]} 38. Qxd5+ {[%clk 0:00:04]}  Ke8 {[%clk 0:00:06]} 39. Qe6+ {[%clk 0:00:04]}  Qe7 {[%clk 0:00:06]} 40. Qxe7+ {[%clk 0:00:04]}  Nxe7 {[%clk 0:00:06]} 41. Rxg7 {[%clk 0:00:04]}  Kd7 {[%clk 0:00:07]} 42. d4 {[%clk 0:00:04]}  Ke6 {[%clk 0:00:08]} 43. e4 {[%clk 0:00:05]}  c6 {[%clk 0:00:08]} 44. Kb1 {[%clk 0:00:05]}  Ra4 {[%clk 0:00:08]} 45. Rh7 {[%clk 0:00:05]}  Kd7 {[%clk 0:00:08]} 46. Rh6 {[%clk 0:00:05]}  c5 {[%clk 0:00:08]} 47. d5 {[%clk 0:00:05]}  Rxe4 {[%clk 0:00:08]} 48. Rd6+ {[%clk 0:00:05]}  Kc8 {[%clk 0:00:08]} 49. Ba3 {[%clk 0:00:06]}  Nf5 {[%clk 0:00:08]} 50. Re6 {[%clk 0:00:05]}  c4 {[%clk 0:00:09]} 51. Re8+ {[%clk 0:00:04]}  Kd7 {[%clk 0:00:09]} 52. d6 {[%clk 0:00:05]}  Kxe8 {[%clk 0:00:09]} 53. Bc5 {[%clk 0:00:05]}  Kd7 {[%clk 0:00:09]} 54. Kb2 {[%clk 0:00:05]}  Rxe5 {[%clk 0:00:09]} 55. Bb4 {[%clk 0:00:05]}  Rd5 {[%clk 0:00:10]} 56. Kc3 {[%clk 0:00:06]}  Nxd6 {[%clk 0:00:10]} 57. Kb2 {[%clk 0:00:05]}  Nb5 {[%clk 0:00:11]} 58. Ba5 {[%clk 0:00:05]}  Rd3 {[%clk 0:00:12]} 59. Bb4 {[%clk 0:00:05]}  Kc6 {[%clk 0:00:13]} 60. Ba5 {[%clk 0:00:05]}  b6 {[%clk 0:00:13]} 61. Be1 {[%clk 0:00:06]}  Re3 {[%clk 0:00:12]} 62. Bb4 {[%clk 0:00:06]}  Re2+ {[%clk 0:00:13]} 63. Kb1 {[%clk 0:00:07]}  c3 {[%clk 0:00:13]} 64. Bxc3 {[%clk 0:00:06]}  Nxc3+ {[%clk 0:00:14]} 65. Ka1 {[%clk 0:00:07]}  b2# {[%clk 0:00:15]} 0-1


[Site "https://www.chess.com"]

[Event "Titled Tuesday Blitz July 6 2021"]
[White "Boidiya, Sidi"]
[Black "Ozen, Bahadir"]
[WhiteFideId "19600100"]
[BlackFideId "6337058"]
[WhiteElo "2113"]
[BlackElo "2503"]
[Result "1/2-1/2"]
[Round "05"]
[TimeControl "180+1"]
[Date "2021.07.06"]
[WhiteClock "0:01:06"]
[BlackClock "0:00:25"]

1. e4 {[%clk 0:03:00]}  c5 {[%clk 0:02:58]} 2. Nc3 {[%clk 0:02:54]}  d6 {[%clk 0:02:57]} 3. g3 {[%clk 0:02:54]}  Nc6 {[%clk 0:02:55]} 4. d3 {[%clk 0:02:54]}  Nf6 {[%clk 0:02:55]} 5. Bg2 {[%clk 0:02:52]}  g6 {[%clk 0:02:55]} 6. Be3 {[%clk 0:02:52]}  Bg7 {[%clk 0:02:55]} 7. h3 {[%clk 0:02:52]}  O-O {[%clk 0:02:52]} 8. Qd2 {[%clk 0:02:53]}  Rb8 {[%clk 0:02:42]} 9. a4 {[%clk 0:02:49]}  a6 {[%clk 0:02:31]} 10. Nge2 {[%clk 0:02:48]}  b5 {[%clk 0:02:30]} 11. axb5 {[%clk 0:02:46]}  axb5 {[%clk 0:02:31]} 12. O-O {[%clk 0:02:46]}  b4 {[%clk 0:02:28]} 13. Nd1 {[%clk 0:02:45]}  Bb7 {[%clk 0:02:05]} 14. Bh6 {[%clk 0:02:43]}  Qc7 {[%clk 0:01:56]} 15. Bxg7 {[%clk 0:02:42]}  Kxg7 {[%clk 0:01:57]} 16. Ne3 {[%clk 0:02:40]}  Ra8 {[%clk 0:01:54]} 17. Rxa8 {[%clk 0:02:36]}  Rxa8 {[%clk 0:01:53]} 18. f4 {[%clk 0:02:37]}  Ra2 {[%clk 0:01:50]} 19. b3 {[%clk 0:02:05]}  Nd4 {[%clk 0:01:13]} 20. Nxd4 {[%clk 0:02:01]}  cxd4 {[%clk 0:01:14]} 21. Nc4 {[%clk 0:01:59]}  d5 {[%clk 0:01:10]} 22. exd5 {[%clk 0:02:00]}  Nxd5 {[%clk 0:01:02]} 23. Qf2 {[%clk 0:01:57]}  Ne3 {[%clk 0:00:58]} 24. Nxe3 {[%clk 0:01:39]}  dxe3 {[%clk 0:00:57]} 25. Qxe3 {[%clk 0:01:37]}  Bxg2 {[%clk 0:00:35]} 26. Kxg2 {[%clk 0:01:38]}  Qxc2+ {[%clk 0:00:33]} 27. Rf2 {[%clk 0:01:31]}  Qc6+ {[%clk 0:00:31]} 28. Qe4 {[%clk 0:01:25]}  Rxf2+ {[%clk 0:00:30]} 29. Kxf2 {[%clk 0:01:25]}  Qc2+ {[%clk 0:00:31]} 30. Kf3 {[%clk 0:01:25]}  Qd1+ {[%clk 0:00:29]} 31. Ke3 {[%clk 0:01:06]}  Qe1+ {[%clk 0:00:27]} 32. Kf3 {[%clk 0:01:06]}  Qf1+ {[%clk 0:00:27]} 33. Ke3 {[%clk 0:01:06]}  Qxh3 {[%clk 0:00:27]} 34. Qe5+ {[%clk 0:01:05]}  Kg8 {[%clk 0:00:27]} 35. Qb8+ {[%clk 0:01:05]}  Kg7 {[%clk 0:00:27]} 36. Qe5+ {[%clk 0:01:05]}  Kh6 {[%clk 0:00:24]} 37. Qg5+ {[%clk 0:01:05]}  Kg7 {[%clk 0:00:25]} 38. Qe5+ {[%clk 0:01:06]} 1/2-1/2


[Site "https://www.chess.com"]